bitfinex/quotes_ETHUSD_20250620
["timestamp","ask_amount","ask_price","bid_price","bid_amount"]
[1750402326375,6.9252473,2521.4,2521.3,3.9662079]
[1750402326579,25.18219439,2521.4,2521.3,3.9662079]
[1750402326875,25.24059439,2521.4,2521.3,3.9662079]
[1750402327382,25.24055754,2521.4,2521.3,3.9662079]
[1750402329557,25.24053374,2521.4,2521.3,3.9662079]
[1750402330948,25.24052584,2521.4,2521.3,3.9662079]
[1750402332181,0.0584,2521.2,2521.1,3.96652254]
[1750402332408,6.4564,2521.2,2521.1,3.96652254]
[1750402333899,6.398,2521.2,2521.1,3.96652254]
[1750402334095,10.0,2521.3,2521.2,3.96636522]
[1750402334301,16.397,2521.3,2521.2,3.96636522]
[1750402334894,10.0,2521.3,2521.2,3.96636522]
[1750402335061,17.7959473,2521.6,2521.5,3.96589331]
[1750402335255,26.04980722,2521.6,2521.5,3.96589331]
[1750402336299,26.04979948,2521.6,2521.5,3.96589331]
[1750402336997,25.2375018,2521.6,2521.5,3.96589331]
[1750402337878,25.0146473,2521.6,2521.5,3.96589331]
[1750402338205,25.23750127,2521.6,2521.5,3.96589331]
[1750402338390,25.23750924,2521.6,2521.5,3.96589331]
[1750402338902,10.0,2521.5,2521.4,3.96595921]
[1750402339107,10.28126194,2521.5,2521.4,3.96595921]
[1750402339404,11.05566194,2521.5,2521.4,3.96595921]
[1750402339584,11.05566753,2521.5,2521.4,3.96595921]
[1750402339784,11.05566622,2521.5,2521.4,3.96595921]
[1750402340195,11.05567308,2521.5,2521.4,3.96595921]
[1750402340578,10.28127216,2521.5,2521.4,3.96595921]
[1750402340783,10.28126832,2521.5,2521.4,3.96595921]
[1750402341440,10.0584,2521.5,2521.4,3.96595921]
[1750402341644,10.28127012,2521.5,2521.4,3.96595921]
[1750402342141,10.0584,2521.5,2521.4,3.96595921]
[1750402342343,10.28128105,2521.5,2521.4,3.96595921]
[1750402342708,10.28128069,2521.5,2521.4,3.96595921]
[1750402343122,10.28128809,2521.5,2521.4,3.96595921]
[1750402343613,10.0584,2521.5,2521.4,3.96595921]
[1750402343824,10.28130408,2521.5,2521.4,3.96595921]
[1750402345743,16.67530408,2521.5,2521.4,3.96595921]
[1750402346145,16.67542335,2521.5,2521.4,3.96595921]
[1750402346440,16.4524,2521.5,2521.4,3.96595921]
[1750402346745,16.67542275,2521.5,2521.4,3.96595921]
[1750402347049,0.0596,2521.4,2521.3,3.96609862]
[1750402347233,0.28262275,2521.4,2521.3,3.96609862]
[1750402348625,0.28275053,2521.4,2521.3,3.96609862]
[1750402349346,0.0596,2521.4,2521.3,3.96609862]
[1750402349553,0.28274979,2521.4,2521.3,3.96609862]
[1750402349718,0.28274989,2521.4,2521.3,3.96609862]
[1750402350451,7.20799719,2521.4,2521.3,3.96609862]
[1750402350938,7.20802091,2521.4,2521.3,3.96609862]
[1750402351661,7.20800955,2521.4,2521.3,3.96609862]
[1750402351964,7.20800935,2521.4,2521.3,3.96609862]
[1750402352259,6.9848473,2521.4,2521.3,3.96609862]
[1750402352463,7.20800935,2521.4,2521.3,3.96609862]
[1750402353266,6.9848473,2521.4,2521.3,3.96609862]
[1750402353441,0.28276213,2521.4,2521.3,3.96609862]
[1750402354264,0.28275603,2521.4,2521.3,3.96609862]
[1750402355165,0.28275209,2521.4,2521.3,3.96609862]
[1750402357169,0.28275209,2521.4,2521.2,3.96622119]
[1750402357333,16.61515209,2521.3,2521.2,3.96622119]
[1750402357532,16.67475209,2521.3,2521.2,3.96622119]
[1750402359145,16.67474118,2521.3,2521.2,3.96622119]
[1750402359474,16.6747412,2521.3,2520.9,0.7556]
[1750402359763,0.0596,2521.1,2521.0,3.96667988]
[1750402359926,0.0596,2521.2,2521.1,3.96652254]
[1750402360123,6.67470767,2521.2,2521.1,3.96652254]
[1750402360760,0.0596,2521.2,2521.1,3.96652254]
[1750402360960,0.22310269,2521.2,2521.1,5.93632075]
[1750402361124,1.91570269,2521.5,2521.4,3.9660506]
[1750402361332,18.30970269,2521.5,2521.4,3.9660506]
[1750402361531,18.30968367,2521.5,2521.4,3.9660506]
[1750402361750,18.30968467,2521.5,2521.4,3.9660506]
[1750402362175,18.3096901,2521.5,2521.4,3.9660506]
[1750402362333,25.2349374,2521.5,2521.4,3.9660506]
[1750402362540,25.1753374,2521.5,2521.4,3.9660506]
[1750402362741,25.2349374,2521.5,2521.4,3.9660506]
[1750402363554,25.23493558,2521.5,2521.4,3.9660506]
[1750402365676,15.23493558,2521.5,2521.4,3.9660506]
[1750402365885,25.23493263,2521.5,2521.4,3.9660506]
[1750402366711,25.23494414,2521.5,2521.4,3.9660506]
[1750402367003,25.23494416,2521.5,2521.4,3.9660506]
[1750402367178,18.84094416,2521.5,2521.4,3.9660506]
[1750402367380,25.23394416,2521.5,2521.4,3.9660506]
[1750402367782,25.17434416,2521.5,2521.4,3.9660506]
[1750402368929,25.17434718,2521.5,2521.4,3.9660506]
[1750402369610,25.17435438,2521.5,2521.4,3.9660506]
[1750402370311,25.17435431,2521.5,2521.4,3.9660506]
[1750402370803,23.79104632,2521.5,2521.4,3.9660506]
[1750402371308,23.79105312,2521.5,2521.4,3.9660506]
[1750402372125,23.79106528,2521.5,2521.4,3.9660506]
[1750402372422,23.56793931,2521.5,2521.4,3.9660506]
[1750402372725,23.79106539,2521.5,2521.4,3.9660506]
[1750402372922,23.85296539,2521.5,2521.4,3.9660506]
[1750402373083,23.85297073,2521.5,2521.4,3.9660506]
[1750402374522,23.85298638,2521.5,2521.4,3.9660506]
[1750402375603,23.79108638,2521.5,2521.4,3.9660506]
[1750402375798,23.79110085,2521.5,2521.4,3.9660506]
[1750402376742,18.24916154,2521.5,2521.4,3.9660506]
[1750402376937,23.79110068,2521.5,2521.4,3.9660506]
[1750402377093,23.85300068,2521.5,2521.4,3.9660506]
[1750402377602,23.62983931,2521.5,2521.4,3.9660506]
[1750402377828,23.85299738,2521.5,2521.4,3.9660506]
[1750402378203,23.79109356,2521.5,2521.4,3.9660506]
[1750402378925,23.79109373,2521.5,2521.4,3.9660506]
[1750402379226,23.85299373,2521.5,2521.4,3.9660506]
[1750402380528,23.85299373,2521.5,2521.3,3.96612297]
[1750402380833,6.67705442,2521.4,2521.3,3.96612297]
[1750402382223,6.67706039,2521.4,2521.3,3.96612297]
[1750402383141,6.67706039,2521.4,2521.3,3.96612297]
[1750402383833,6.67705785,2521.4,2521.3,3.96612297]
[1750402384630,6.4539,2521.4,2521.3,3.96612297]
[1750402384833,6.67705652,2521.4,2521.3,3.96612297]
[1750402385138,6.67705423,2521.4,2521.3,3.96612297]
[1750402386542,6.67705177,2521.4,2521.3,3.96612297]
[1750402388163,6.4539,2521.4,2521.3,3.96612297]
[1750402388365,6.67705458,2521.4,2521.3,3.96612297]
[1750402388646,6.67705539,2521.4,2521.3,3.96612297]
[1750402389224,10.0619,2521.3,2521.2,3.96629051]
[1750402389446,15.82699855,2521.3,2521.2,3.96629051]
[1750402391946,15.82705586,2521.3,2521.2,3.96629051]
[1750402392245,15.60383931,2521.3,2521.2,3.96629051]
[1750402392414,15.82706624,2521.3,2521.2,3.96629051]
[1750402393131,15.60383931,2521.3,2521.2,3.96629051]
[1750402393331,15.8270562,2521.3,2521.2,3.96629051]
[1750402394445,15.82705506,2521.3,2521.2,3.96629051]
[1750402395349,0.22321071,2521.3,2521.2,4.74999051]
[1750402395652,6.61521071,2521.3,2521.2,5.627011]
[1750402397151,6.392,2521.3,2521.2,5.627011]
[1750402397356,6.61520112,2521.3,2521.2,4.74999051]
[1750402397519,6.61520112,2521.3,2521.2,3.96629051]
[1750402398151,6.61509565,2521.3,2521.2,3.96629051]
[1750402398758,6.61492231,2521.3,2521.2,3.96629051]
[1750402399129,6.61486393,2521.3,2521.2,3.96629051]
[1750402399816,6.392,2521.3,2521.2,3.96629051]
[1750402400011,6.6148641,2521.3,2521.2,3.96629051]
[1750402400319,6.6148664,2521.3,2521.2,3.96629051]
[1750402400520,6.61487119,2521.3,2521.2,3.96629051]
[1750402400966,6.61486921,2521.3,2521.2,3.96629051]
[1750402401279,6.61486912,2521.3,2521.2,3.96629051]
[1750402402186,6.392,2521.3,2521.2,3.96629051]
[1750402402371,6.61486824,2521.3,2521.2,3.96629051]
[1750402403757,6.392,2521.3,2521.2,3.96629051]
[1750402403958,6.61486822,2521.3,2521.2,3.96629051]
[1750402405782,12.15680753,2521.3,2521.2,3.96629051]
[1750402406146,12.15680649,2521.3,2521.2,3.96629051]
[1750402406362,12.15680596,2521.3,2521.2,3.96629051]
[1750402406565,12.21590596,2521.3,2521.2,3.96629051]
[1750402406974,11.99303931,2521.3,2521.2,3.96629051]
[1750402407181,12.21590692,2521.3,2521.2,3.96629051]
[1750402407580,5.82390692,2521.3,2521.2,3.96629051]
[1750402407793,22.15689301,2521.3,2521.2,3.96629051]
[1750402408885,22.15690482,2521.3,2521.2,3.96629051]
[1750402409090,22.21600482,2521.3,2521.2,3.96629051]
[1750402409687,22.2160331,2521.3,2521.2,3.96629051]
[1750402410888,22.21603737,2521.3,2521.2,3.96629051]
[1750402411199,22.21604622,2521.3,2521.2,3.96629051]
[1750402412183,22.2160545,2521.3,2521.2,3.96629051]
[1750402413720,22.21605772,2521.3,2521.2,3.96629051]
[1750402414212,22.21605529,2521.3,2521.2,3.96629051]
[1750402415694,22.21505529,2521.3,2521.2,3.96629051]
[1750402417701,22.21504897,2521.3,2521.2,3.96629051]
[1750402418301,22.21504972,2521.3,2521.2,3.96629051]
[1750402418809,22.21504911,2521.3,2521.2,3.96629051]
[1750402419215,21.99203931,2521.3,2521.2,3.96629051]
[1750402419417,22.21504873,2521.3,2521.2,3.96629051]
[1750402419781,22.21504852,2521.3,2521.2,3.96629051]
[1750402421216,22.15594852,2521.3,2521.2,3.96629051]
[1750402421410,22.21504852,2521.3,2521.2,3.96629051]
[1750402421717,15.76494852,2521.3,2521.2,3.96629051]
[1750402421903,22.15595125,2521.3,2521.2,3.96629051]
[1750402422078,16.61401194,2521.3,2521.2,3.96629051]
[1750402422479,16.61401082,2521.3,2521.2,3.96629051]
[1750402423221,16.61402266,2521.3,2521.2,3.96629051]
[1750402423802,16.61401676,2521.3,2521.2,3.96629051]
[1750402423990,16.61401658,2521.3,2521.2,3.96629051]
[1750402424294,16.61401749,2521.3,2521.2,3.96629051]
[1750402427029,16.391,2521.3,2521.2,3.96629051]
[1750402427328,16.61402894,2521.3,2521.2,3.96629051]
[1750402428789,16.61401896,2521.3,2521.2,3.96629051]
[1750402429590,16.67311896,2521.3,2521.2,3.96629051]
[1750402429991,16.67310635,2521.3,2521.2,3.96629051]
[1750402430401,22.21504543,2521.3,2521.2,3.96629051]
[1750402431450,22.21504518,2521.3,2521.2,3.96629051]
[1750402432935,22.21504123,2521.3,2521.2,3.96629051]
[1750402434333,22.21504097,2521.3,2521.2,3.96629051]
[1750402435613,16.61400166,2521.3,2521.2,3.96629051]
[1750402435809,0.22299588,2521.3,2521.2,5.59324875]
[1750402436013,5.80972106,2521.8,2521.2,5.59324875]
[1750402436014,1.6896,2521.8,2521.7,3.96557877]
[1750402436262,23.84555953,2521.8,2521.7,3.96557877]
[1750402437951,17.45455953,2521.8,2521.7,3.96557877]
[1750402438141,23.84555953,2521.8,2521.7,3.96557877]
[1750402438537,23.62253931,2521.8,2521.7,3.96557877]
[1750402438741,23.84536416,2521.8,2521.7,3.96557877]
[1750402439252,23.8453658,2521.8,2521.7,3.96557877]
[1750402440450,23.62253931,2521.8,2521.7,3.96557877]
[1750402440631,23.8452891,2521.8,2521.7,3.96557877]
[1750402441147,15.7646891,2521.8,2521.7,3.96557877]
[1750402441356,23.62153931,2521.8,2521.7,3.96557877]
[1750402441542,23.84427933,2521.8,2521.7,3.96557877]
[1750402442455,17.39369353,2521.8,2521.7,3.96557877]
[1750402442653,23.84428971,2521.8,2521.7,3.96557877]
[1750402444052,23.62153931,2521.8,2521.7,3.96557877]
[1750402444247,23.84423272,2521.8,2521.7,3.96557877]
[1750402444819,17.45423272,2521.8,2521.7,3.96557877]
[1750402445119,23.84423272,2521.8,2521.7,3.96557877]
[1750402446471,23.84420329,2521.8,2521.7,3.96557877]
[1750402447133,23.84420059,2521.8,2521.7,3.96557877]
[1750402448433,23.84420059,2521.8,2521.7,3.86557877]
[1750402449780,17.39360059,2521.8,2521.7,3.86557877]
[1750402449942,23.78360059,2521.8,2521.7,3.86557877]
[1750402450262,23.56093931,2521.8,2521.7,3.86557877]
[1750402450665,1.629,2522.0,2521.9,3.96526428]
[1750402450969,18.019,2522.0,2521.9,3.96526428]
[1750402451164,1.629,2522.0,2521.9,3.96526428]
[1750402451468,18.018,2522.0,2521.9,4.72646428]
[1750402452443,10.0,2522.0,2521.9,4.72646428]
[1750402452639,10.0,2522.0,2521.9,5.98757789]
[1750402460581,10.0,2522.0,2521.9,4.72646428]
[1750402468547,10.0,2522.0,2521.9,4.7661134]
[1750402469982,10.0,2522.0,2521.9,4.72646428]
[1750402472586,10.0,2522.0,2521.9,4.76611282]
[1750402472879,10.0,2522.0,2521.9,4.72646428]
[1750402474492,6.388,2522.2,2522.1,3.96494984]
[1750402474800,10.8189,2522.5,2522.4,3.96447827]
[1750402474955,20.33482168,2522.5,2522.4,3.96447827]
[1750402475155,12.31982168,2522.5,2522.4,3.96447827]
[1750402475610,20.33482168,2522.5,2522.4,3.96447827]
[1750402475950,20.33481972,2522.5,2522.4,3.96447827]
[1750402476888,25.87256094,2522.5,2522.4,3.96447827]
[1750402477185,25.64980298,2522.5,2522.4,3.96447827]
[1750402477352,25.87255935,2522.5,2522.4,3.96447827]
[1750402477682,25.64980298,2522.5,2522.4,3.96447827]
[1750402477890,25.87255933,2522.5,2522.4,3.96447827]
[1750402478586,25.87264273,2522.5,2522.4,3.96447827]
[1750402478783,25.8726427,2522.5,2522.4,3.96447827]
[1750402479384,19.4856427,2522.5,2522.4,3.96447827]
[1750402479551,25.8726427,2522.5,2522.4,3.96447827]
[1750402479747,17.8008427,2522.5,2522.4,3.96447827]
[1750402480077,23.83232123,2522.5,2522.4,3.96447827]
[1750402480594,11.90763972,2522.5,2522.4,3.96447827]
[1750402480895,18.29471968,2522.5,2522.4,3.96447827]
[1750402481072,10.0,2522.6,2522.5,3.96432111]
[1750402481273,16.60991711,2522.6,2522.5,3.96432111]
[1750402481455,16.387,2522.6,2522.5,3.96432111]
[1750402481660,16.60991605,2522.6,2522.5,3.96432111]
[1750402482997,0.22291605,2522.6,2522.5,3.96432111]
[1750402483204,8.015,2522.7,2522.6,3.96416395]
[1750402483903,1.628,2522.7,2522.6,3.96416395]
[1750402486701,1.6848,2522.7,2522.6,3.96416395]
[1750402490719,1.628,2522.7,2522.6,5.38741268]
[1750402490886,1.628,2522.7,2522.6,5.34777434]
[1750402492519,1.628,2522.7,2522.6,3.96416395]
[1750402498330,10.0579,2522.8,2522.7,3.96400681]
[1750402498526,16.4429,2522.8,2522.7,3.96400681]
[1750402499108,10.0579,2522.9,2522.8,3.96384969]
[1750402499321,16.4429,2522.9,2522.8,3.96384969]
[1750402502239,10.0579,2522.9,2522.8,3.96384969]
[1750402502525,16.4429,2522.9,2522.8,3.96384969]
[1750402505214,16.4429,2522.9,2522.8,3.95419057]
[1750402506135,10.0579,2522.9,2522.8,3.95419057]
[1750402506442,16.4429,2522.9,2522.8,3.95419057]
[1750402506858,10.0579,2522.9,2522.8,3.95419057]
[1750402507162,16.4419,2522.9,2522.8,3.95419057]
[1750402509410,0.0579,2522.9,2522.8,3.95419057]
[1750402509721,1.6849,2523.0,2522.9,3.96369257]
[1750402509906,8.29164931,2523.0,2522.9,3.96369257]
[1750402510247,0.22274931,2523.0,2522.9,3.96369257]
[1750402510464,1.096588,2523.4,2523.2,3.9632213]
[1750402510465,11.90764931,2523.3,2523.2,3.9632213]
[1750402510748,18.29164931,2523.3,2523.2,3.9632213]
[1750402511343,18.29174174,2523.3,2523.2,3.9632213]
[1750402511542,18.29174176,2523.3,2523.2,3.9632213]
[1750402512608,18.29183214,2523.3,2523.2,3.9632213]
[1750402514342,11.90783214,2523.3,2523.2,3.9632213]
[1750402514522,18.29183214,2523.3,2523.2,3.9632213]
[1750402514934,18.29172548,2523.3,2523.2,3.9632213]
[1750402515241,6.60682548,2523.3,2523.2,3.9632213]
[1750402515549,6.60681655,2523.3,2523.2,3.9632213]
[1750402516947,6.384,2523.3,2523.2,3.9632213]
[1750402517648,16.384,2523.3,2523.2,3.9632213]
[1750402519048,10.0,2523.3,2523.2,3.9632213]
[1750402520813,10.0616,2523.3,2523.2,3.9632213]
[1750402524354,10.0,2523.3,2523.2,3.9632213]
[1750402526257,15.05768151,2523.8,2523.6,3.96259312]
[1750402526456,6.60548077,2523.7,2523.6,3.96259312]
[1750402526676,10.22248077,2523.7,2523.6,3.96259312]
[1750402526822,16.60547058,2523.7,2523.6,3.96259312]
[1750402528562,16.383,2523.7,2523.6,3.96259312]
[1750402528927,16.4446,2523.7,2523.6,3.96259312]
[1750402529653,16.4436,2523.7,2523.6,3.96259312]
[1750402530252,10.0616,2523.7,2523.6,3.96259312]
[1750402530457,16.4436,2523.7,2523.6,3.96259312]
[1750402531349,16.4436,2523.7,2523.1,6.4367]
[1750402531350,19.96446,2523.7,2523.1,3.96326497]
[1750402531552,16.97622166,2523.5,2523.4,3.96290718]
[1750402531769,23.35822166,2523.5,2523.4,3.96290718]
[1750402532925,24.11662166,2523.5,2523.4,3.96290718]
[1750402534010,17.202,2523.5,2523.4,3.96290718]
[1750402538438,7.202,2523.5,2523.4,3.96290718]
[1750402539633,0.0616,2523.7,2523.6,3.96259312]
[1750402539961,0.28416859,2523.7,2523.6,3.96259312]
[1750402540160,8.29216859,2523.7,2523.6,3.96259312]
[1750402541200,18.29220235,2523.7,2523.6,3.96259312]
[1750402541751,18.29220293,2523.7,2523.6,3.96259312]
[1750402542139,18.29220352,2523.7,2523.6,3.96259312]
[1750402543303,21.15107572,2523.7,2523.6,3.96259312]
[1750402543923,20.92844035,2523.7,2523.6,3.96259312]
[1750402544124,21.15107812,2523.7,2523.6,3.96259312]
[1750402546523,21.15116577,2523.7,2523.6,3.96259312]
[1750402547047,21.15116549,2523.7,2523.6,3.96259312]
[1750402547245,13.14316549,2523.7,2523.6,3.96259312]
[1750402547713,19.52516549,2523.7,2523.6,3.96259312]
[1750402549275,19.52518742,2523.7,2523.6,3.96259312]
[1750402549671,21.15118742,2523.7,2523.6,3.96259312]
[1750402549873,18.29234497,2523.7,2523.6,3.96259312]
[1750402550474,18.29234442,2523.7,2523.6,3.96259312]
[1750402551151,10.28154442,2523.7,2523.6,3.96259312]
[1750402551346,16.66354442,2523.7,2523.6,3.96259312]
[1750402551881,16.60474442,2523.7,2523.6,3.96259312]
[1750402552580,16.66354442,2523.7,2523.6,3.96259312]
[1750402552875,16.66363289,2523.7,2523.6,3.96259312]
[1750402553238,16.66363351,2523.7,2523.6,3.96259312]
[1750402553673,10.28163351,2523.7,2523.6,3.96259312]
[1750402553973,17.69179686,2523.7,2523.6,3.96259312]
[1750402554174,18.4694029,2523.7,2523.6,3.96259312]
[1750402554742,18.46948628,2523.7,2523.6,3.96259312]
[1750402555278,18.24656335,2523.7,2523.6,3.96259312]
[1750402555484,18.46948782,2523.7,2523.6,3.96259312]
[1750402555683,12.08748782,2523.7,2523.6,3.96259312]
[1750402555846,18.46948782,2523.7,2523.6,3.96259312]
[1750402556588,18.46949206,2523.7,2523.6,3.96259312]
[1750402557551,18.46949517,2523.7,2523.6,3.96259312]
[1750402558282,17.46896335,2523.7,2523.6,3.96259312]
[1750402558494,16.66373126,2523.7,2523.6,3.96259312]
[1750402559484,10.28173001,2523.7,2523.6,3.96259312]
[1750402559785,18.28973001,2523.7,2523.6,3.96259312]
[1750402560387,18.2897319,2523.7,2523.6,3.96259312]
[1750402560885,18.0668,2523.7,2523.6,3.96259312]
[1750402561091,18.28972733,2523.7,2523.6,3.96259312]
[1750402561595,0.0588,2523.5,2523.4,3.96290718]
[1750402561829,16.66273189,2523.5,2523.4,3.96290718]
[1750402562288,16.66274297,2523.5,2523.4,3.96290718]
[1750402563185,16.662756,2523.5,2523.4,3.96290718]
[1750402563490,16.66275599,2523.5,2523.4,3.96290718]
[1750402563785,16.6627551,2523.5,2523.4,3.96290718]
[1750402563963,16.6039541,2523.5,2523.4,3.96290718]
[1750402564386,16.381,2523.5,2523.4,3.96290718]
[1750402568107,16.4398,2523.5,2523.4,3.96290718]
[1750402571219,10.0,2523.5,2523.4,3.96290718]
[1750402571611,16.381,2523.5,2523.4,4.73750718]
[1750402574122,10.0,2523.5,2523.4,4.73750718]
[1750402574427,10.0,2523.5,2523.4,3.96290718]
[1750402574428,16.4398,2523.5,2523.4,3.96290718]
[1750402575440,16.66278855,2523.5,2523.4,3.96290718]
[1750402578236,16.6627914,2523.5,2523.4,3.96290718]
[1750402579432,16.6627888,2523.5,2523.4,3.96290718]
[1750402579732,16.66278878,2523.5,2523.4,3.96290718]
[1750402580207,16.66279083,2523.5,2523.4,3.96290718]
[1750402580606,16.66280588,2523.5,2523.4,3.96290718]
[1750402580808,10.7665,2523.4,2523.2,3.9631162]
[1750402580997,16.66281333,2523.3,2523.2,3.9631162]
[1750402581198,16.66282212,2523.3,2523.2,3.9631162]
[1750402581500,0.0588,2523.0,2522.5,0.833]
[1750402581801,10.0,2522.8,2522.7,3.96392551]
[1750402582018,10.0588,2522.8,2522.7,3.96392551]
[1750402582193,0.0588,2522.7,2522.4,3.96443343]
[1750402582397,16.4448,2522.6,2522.5,3.96422267]
[1750402583198,16.386,2522.6,2522.4,3.96440438]
[1750402583401,0.0588,2522.5,2522.4,3.96440438]
[1750402585426,1.6878,2522.5,2522.4,3.96440438]
[1750402588542,11.629,2522.6,2522.5,4.73832111]
[1750402588840,16.387,2522.6,2522.5,4.73832111]
[1750402589958,16.389,2522.6,2522.5,4.73832111]
[1750402601390,16.389,2522.6,2522.5,3.96432111]
[1750402603177,16.4478,2522.6,2522.5,3.96432111]
[1750402607667,16.389,2522.6,2522.5,3.96432111]
[1750402612021,10.0,2522.6,2522.5,3.96432111]
[1750402612204,16.393,2522.6,2522.5,3.96432111]
[1750402612701,10.0,2522.6,2522.5,3.96432111]
[1750402613180,16.393,2522.6,2522.5,3.96432111]
[1750402614603,0.8025,2523.0,2522.5,3.96432111]
[1750402614604,2.4186,2523.2,2522.6,0.8102]
[1750402614801,1.6899,2523.2,2523.1,3.96326529]
[1750402615007,8.30488612,2523.2,2523.1,3.96326529]
[1750402615371,8.0819,2523.2,2523.1,3.96326529]
[1750402615570,3.82039434,2523.2,2523.1,3.96326529]
[1750402615780,10.21439094,2523.2,2523.1,3.96326529]
[1750402617206,3.82039636,2523.2,2523.1,3.96326529]
[1750402617374,10.21439636,2523.2,2523.1,3.96326529]
[1750402617910,10.21430251,2523.2,2523.1,3.96326529]
[1750402618207,10.21431101,2523.2,2523.1,3.96326529]
[1750402618404,8.30565286,2523.2,2523.1,3.96326529]
[1750402619715,8.305653,2523.2,2523.1,3.96326529]
[1750402620012,8.30565351,2523.2,2523.1,3.96326529]
[1750402621509,10.0589,2523.1,2523.0,3.96344876]
[1750402623703,10.0,2523.1,2523.0,3.96344876]
[1750402624330,0.0589,2523.3,2523.1,3.96325567]
[1750402624528,6.393,2523.2,2523.1,3.96325567]
[1750402624733,6.67454002,2523.2,2523.1,3.96325567]
[1750402625237,6.4519,2523.2,2523.1,3.96325567]
[1750402625643,6.67451355,2523.2,2523.1,3.96325567]
[1750402626307,6.67450793,2523.2,2523.1,3.96325567]
[1750402626507,6.67450974,2523.2,2523.1,3.96325567]
[1750402626747,6.67449849,2523.2,2523.1,3.96325567]
[1750402627145,6.61559849,2523.2,2523.1,3.96325567]
[1750402627347,12.68458151,2523.4,2523.3,3.96306424]
[1750402627532,22.25909235,2523.4,2523.3,3.96306424]
[1750402628113,10.0,2523.3,2523.2,3.96313387]
[1750402628345,0.0589,2523.3,2523.2,3.96313387]
[1750402628522,0.28148503,2523.3,2523.2,3.96313387]
[1750402629651,0.28147119,2523.3,2523.2,3.96313387]
[1750402629945,6.67347362,2523.3,2523.2,3.96313387]
[1750402630146,6.67347295,2523.3,2523.2,3.96313387]
[1750402630333,6.67347338,2523.3,2523.2,3.96313387]
[1750402631241,6.4509,2523.3,2523.2,3.96313387]
[1750402631446,6.67347185,2523.3,2523.1,3.96329033]
[1750402631646,0.0589,2523.2,2523.1,3.96329033]
[1750402636151,6.4479,2523.2,2523.1,3.96329033]
[1750402637448,3.16700183,2523.4,2523.1,3.96329033]
[1750402637654,1.89698151,2523.4,2523.3,3.96306424]
[1750402637856,8.50763033,2523.4,2523.3,3.96306424]
[1750402638150,6.388,2523.6,2523.5,3.96275014]
[1750402638322,6.61062291,2523.6,2523.5,3.96275014]
[1750402638526,6.388,2523.6,2523.5,3.96275014]
[1750402638850,6.4469,2523.6,2523.5,3.96275014]
[1750402639653,16.4469,2523.6,2523.5,3.96275014]
[1750402643656,10.0589,2523.6,2523.5,3.96275014]
[1750402644278,16.4469,2523.6,2523.5,3.96275014]
[1750402646157,10.0593,2523.5,2523.3,3.96305754]
[1750402646328,16.4463,2523.4,2523.3,3.96305754]
[1750402651564,16.387,2523.4,2523.3,3.96305754]
[1750402652374,16.4463,2523.4,2523.3,3.96305754]
[1750402653672,16.387,2523.4,2523.3,3.96305754]
[1750402654980,10.0,2523.4,2523.3,4.77215754]
[1750402655178,16.386,2523.4,2523.3,4.77215754]
[1750402661002,16.386,2523.4,2523.3,3.96305754]
[1750402661306,10.0593,2523.4,2523.3,3.96305754]
[1750402661468,16.4443,2523.4,2523.3,3.96305754]
[1750402663009,16.385,2523.4,2523.3,3.96305754]
[1750402674846,16.4418,2523.4,2523.3,3.96305754]
[1750402675139,16.66479265,2523.4,2523.3,3.96305754]
[1750402676051,16.4418,2523.4,2523.3,3.96305754]
[1750402679857,10.0568,2523.4,2523.3,3.96305754]
[1750402680059,16.4398,2523.4,2523.3,3.96305754]
[1750402681360,16.383,2523.4,2523.3,3.96305754]
[1750402681558,10.0,2523.4,2523.3,3.96305754]
[1750402681732,10.8595,2523.9,2523.8,3.9622791]
[1750402681938,17.46548014,2523.9,2523.8,3.9622791]
[1750402682153,17.40868014,2523.9,2523.4,0.7841]
[1750402682339,17.2425,2523.9,2523.8,3.9622791]
[1750402682664,17.46539523,2523.9,2523.8,3.9622791]
[1750402682863,19.94848608,2523.9,2523.8,3.9622791]
[1750402683230,0.7794,2523.7,2523.6,3.96253492]
[1750402683429,17.44211953,2523.7,2523.6,3.96253492]
[1750402683855,17.44210242,2523.7,2523.6,3.96253492]
[1750402685562,17.44210083,2523.7,2523.6,3.96253492]
[1750402685764,20.12603574,2523.7,2523.6,3.96253492]
[1750402686169,10.0568,2523.6,2523.1,0.7527]
[1750402686354,13.46333491,2523.7,2523.5,3.96275014]
[1750402686665,16.60490441,2523.6,2523.5,3.96275014]
[1750402686869,16.66170441,2523.6,2523.5,3.96275014]
[1750402687032,19.36561866,2523.6,2523.5,3.96275014]
[1750402690187,19.36561716,2523.6,2523.5,3.96275014]
[1750402690488,19.36561697,2523.6,2523.5,3.96275014]
[1750402692579,19.14271967,2523.6,2523.5,3.96275014]
[1750402696383,16.4388,2523.6,2523.5,3.96275014]
[1750402703117,16.66172525,2523.6,2523.5,3.96275014]
[1750402703613,16.66172526,2523.6,2523.5,3.96275014]
[1750402704828,16.66173489,2523.6,2523.5,3.96275014]
[1750402705116,16.4388,2523.6,2523.5,3.96275014]
[1750402705290,16.66173533,2523.6,2523.5,3.96275014]
[1750402705489,16.66172985,2523.6,2523.5,3.96275014]
[1750402705690,16.66172976,2523.6,2523.5,3.96275014]
[1750402706304,16.6617253,2523.6,2523.5,3.96275014]
[1750402706821,0.2797253,2523.6,2523.5,3.96275014]
[1750402707003,16.66172626,2523.6,2523.5,3.96275014]
[1750402708422,10.27972626,2523.6,2523.5,3.96275014]
[1750402708615,16.66172626,2523.6,2523.5,3.96275014]
[1750402709227,16.60492626,2523.6,2523.5,3.96275014]
[1750402709406,16.60494427,2523.6,2523.5,3.96275014]
[1750402710202,10.22294427,2523.6,2523.5,3.96275014]
[1750402710410,16.60494565,2523.6,2523.5,3.96275014]
[1750402711053,16.60495285,2523.6,2523.5,3.96275014]
[1750402711340,6.60495285,2523.6,2523.5,3.96275014]
[1750402712021,0.22295285,2523.6,2523.5,3.96275014]
[1750402712221,6.382,2523.6,2523.5,3.96275014]
[1750402712427,6.60495285,2523.6,2523.5,3.96275014]
[1750402713227,0.22295285,2523.6,2523.5,3.96275014]
[1750402713440,0.22295285,2523.6,2523.4,3.96290379]
[1750402713441,1.6844,2523.8,2523.7,3.9624361]
[1750402713640,8.28936838,2523.8,2523.7,3.9624361]
[1750402713804,8.28937027,2523.8,2523.7,3.9624361]
[1750402714130,8.28937024,2523.8,2523.7,3.9624361]
[1750402716636,8.0664,2523.8,2523.7,3.9624361]
[1750402716818,8.28935557,2523.8,2523.7,3.9624361]
[1750402717540,8.28934614,2523.8,2523.7,3.9624361]
[1750402718357,8.28934539,2523.8,2523.7,3.9624361]
[1750402719238,8.0664,2523.8,2523.7,3.9624361]
[1750402719451,8.28934562,2523.8,2523.7,3.9624361]
[1750402719634,8.28934515,2523.8,2523.7,3.9624361]
[1750402720204,8.28934469,2523.8,2523.7,3.9624361]
[1750402720942,8.28934471,2523.8,2523.7,3.9624361]